Cogmind - Beta 14 @@@ ROGUE MODE // 2024.09.02 @ 12:29:41 Player: H3-RMN Result: Destroyed by LE-P0V(E) with Overtuned Barrage Gun Performance ------------- Evolutions (2) 1000 Regions Visited (8) 1600 Robots Destroyed (123) 615 Value Destroyed (3446) 3446 Prototype IDs (30) 600 Alien Tech Used (0) 0 Bonus (499) 499 TOTAL SCORE: 7760 Bonus ------- High Alert Combat Kills 229 Registered with UFD 300 Friendly Fire -30 Cogmind --------- Core Integrity 0/550 Matter 225/300 Energy 62/275 System Corruption 0% Temperature Critical (627) Movement Treading (250) Ox1 Location -8/Scraptown Parts ------- > --- POWER (2) -------- Deuterium Engine Nuclear Core > --- PROPULSION (3) --- Armored Treads Armored Treads Armored Treads > --- UTILITY (3) ------ High-capacity Storage Unit > --- WEAPON (3) ------- Advanced Assault Cannon Axe > --- INVENTORY (20) --- Armored Treads Overtuned Treads Overtuned Scrapsphere Improved Heat Sink Advanced Heat Sink High-capacity Matter Pod (200) High-capacity Matter Pod (200) Kinecellerator Hacking Suite Hacking Suite Authchip [Weapon] Authchip [Weapon] Heavy Particle Gun Heavy Particle Gun Advanced Beam Rifle Gatling Laser Advanced Beam Cannon Advanced EMP Blaster YI-UF0's Doublenader Long-range Missile Launcher Peak State ------------ > --- POWER ------------ Improved Ion Engine Improved Ion Engine > --- PROPULSION ------- Armored Treads Armored Treads Armored Wheel > --- UTILITY ---------- Advanced Heat Sink High-capacity Storage Unit Drone Bay > --- WEAPON ----------- Heavy Particle Gun Precision Beam Rifle Gatling Laser > --- INVENTORY -------- Armored Treads Armored Treads Improved Heat Sink High-capacity Matter Pod Kinecellerator Hardened Medium Armor Plating Remote Shield Hacking Suite Hacking Suite Hacking Suite Authchip [Weapon] Authchip [Weapon] Heavy Particle Gun Advanced Beam Rifle Gatling Laser Advanced Assault Cannon Advanced Assault Cannon Advanced Assault Cannon Missile Launcher YI-UF0's Doublenader [Rating: 42] Favorites ----------- Power Improved Ion Engine Engine Improved Ion Engine Power Core Nuclear Core Propulsion Armored Treads Treads Armored Treads Wheel Wheel Hover Unit Aerolev Unit Flight Unit Improved Flight Unit Utility High-capacity Storage Unit Device Improved Heat Sink Storage High-capacity Storage Unit Processor Advanced Targeting Computer Hackware Hacking Suite Protection Hardened Medium Armor Plating Weapon Advanced Assault Cannon Energy Gun Gatling Laser Energy Cannon Plasma Cannon Ballistic Gun Light Assault Rifle Ballistic Cannon Advanced Assault Cannon Launcher Missile Launcher Special Weapon Mining Laser Impact Weapon Heavy Mace Slashing Weapon Axe Special Melee Weapon Datajack Build | -11 -10 -10 -10 -9 -8 -8 -8 -8 ------- Run | Yrd Mat Min Exi Min Mat Sto Rec Scr Slots Evolved 4 | . . . . . 4 . . . Power 1 | . . . . . 1 . . . Propulsion 1 | . . . . . 1 . . . Utility 1 | . . . . . 1 . . . Weapon 1 | . . . . . 1 . . . Parts Attached 112 | 7 17 . 1 7 56 15 5 4 Power 20 | 1 2 . . 1 13 1 . 2 Engine 16 | 1 2 . . 1 10 1 . 1 Core 4 | . . . . . 3 . . 1 Reactor . | . . . . . . . . . Propulsion 25 | 2 4 . . 1 13 4 1 . Treads 15 | 1 1 . . 1 10 1 1 . Leg . | . . . . . . . . . Wheel 8 | 1 3 . . . 3 1 . . Hover 1 | . . . . . . 1 . . Flight 1 | . . . . . . 1 . . Utility 25 | 2 5 . . 1 10 5 2 . Device 14 | 1 2 . . 1 5 4 1 . Storage 4 | 1 3 . . . . . . . Processor 2 | . . . . . 2 . . . Hackware 1 | . . . . . . 1 . . Protection 4 | . . . . . 3 . 1 . Artifact . | . . . . . . . . . Weapon 42 | 2 6 . 1 4 20 5 2 2 Energy Gun 20 | . 2 . . 3 15 . . . Energy Cannon 2 | . 1 . . . . . . 1 Ballistic Gun 6 | 2 1 . . . 3 . . . Ballistic Cannon 5 | . . . . . . 4 . 1 Launcher 4 | . . . . 1 2 1 . . Special Weapon 2 | . 2 . . . . . . . Impact Weapon 1 | . . . . . . . 1 . Slashing Weapon 1 | . . . . . . . 1 . Piercing Weapon . | . . . . . . . . . Special Melee Weapon 1 | . . . 1 . . . . . Unidentified Prototypes 9 | . . . . 1 5 3 . . Parts Lost 16 | . . . . 1 12 . . 3 Power 3 | . . . . . 3 . . . Propulsion 2 | . . . . . 2 . . . Utility 3 | . . . . . 1 . . 2 Weapon 8 | . . . . 1 6 . . 1 Highest Loss Streak 10 | . . . . 1 10 . . 3 To Critical Strikes . | . . . . . . . . . Average Slot Usage (%) 98 | . 99 100 100 100 97 99 94 98 Engine 15 | . 14 14 14 14 14 18 18 14 Core 1 | . . . . . 1 . . 3 Treads 19 | . 14 14 14 14 18 17 18 27 Wheel 7 | . 13 14 14 14 8 8 8 . Device 12 | . 14 14 14 14 15 17 9 8 Storage 10 | . 14 14 14 14 9 9 9 9 Protection 3 | . . . . . 1 . 2 9 Energy Gun 9 | . 11 14 1 12 24 6 . . Energy Cannon 5 | . 6 14 14 14 . . . 7 Ballistic Gun 1 | . 8 . . . 2 . . . Ballistic Cannon 5 | . . . . . . 20 19 6 Slashing Weapon 2 | . . . . . . . 1 9 Peak Build Rating 42 | 9 12 12 12 15 40 42 39 41 Average Rating 30 | 6 11 12 11 13 32 39 35 38 On Entrance 19 | . 9 12 12 11 15 40 38 34 Naked Turns . | . . . . . . . . . Heaviest Build 85 | 13 52 52 52 54 75 77 76 85 Greatest Support 60 | 16 20 10 10 10 40 40 60 60 Greatest Overweight (x) 7 | . 5 5 5 5 7 6 6 1 Average Overweight (x) 3 | . 2 5 4 4 5 5 5 1 Largest Inventory Capacity 20 | 8 20 20 20 20 20 20 20 20 Average Capacity 19 | 7 15 20 20 20 20 20 20 20 Most Carried 20 | 6 19 20 20 20 20 20 20 20 Average Carried 18 | 3 14 19 20 19 19 19 19 19 Final Capacity 20 | 8 20 20 20 20 20 20 20 20 Final Carried 20 | 6 19 20 20 20 20 20 20 20 Class Distribution -------------------- 57% | Mutant 21% | Gunner 13% | Scavenger-Gunner 4% | Scavenger-Tank Dominant Class ---------------- Mutant | -10/Materials Mutant | -10/Mines Mutant | -10/Exiles Scavenger-Mutant | -9/Mines Scavenger-Gunner | -8/Materials Gunner | -8/Storage Gunner | -8/Recycling Mutant | -8/Scraptown Resources | -11 -10 -10 -10 -9 -8 -8 -8 -8 ----------- Run | Yrd Mat Min Exi Min Mat Sto Rec Scr Matter Collected 2462 | 292 428 45 165 70 668 626 98 70 Remotely . | . . . . . . . . . Salvage Created 4498 | 108 707 77 . 236 2629 605 98 38 Parts 242 | 6 51 4 . 13 135 23 8 2 Haulers Intercepted 12 | . 2 . . . 6 4 . . Recyclers Shooed 3 | . . . . . 3 . . . Parts Field Recycled . | . . . . . . . . . Retrieved Matter . | . . . . . . . . . Parts Self-Destructed 11 | . . . . . . . . 11 Prevented . | . . . . . . . . . Kills | -11 -10 -10 -10 -9 -8 -8 -8 -8 ------- Run | Yrd Mat Min Exi Min Mat Sto Rec Scr Combat Hostiles Destroyed 81 | . 16 2 . 4 46 10 2 1 Guns 61 | . 15 1 . 1 38 6 . . Cannons 12 | . 1 1 . 3 . 4 2 1 AOE 7 | . . . . . 7 . . . Classes Destroyed 16 | 2 5 . . 1 7 . . 1 Worker 6 | . . . . . 5 1 . . Builder 3 | . . . . . 3 . . . Tunneler 3 | 1 1 . . . 1 . . . Hauler 12 | . 2 . . . 6 4 . . Recycler 8 | 1 1 . . . 5 1 . . Operator 4 | . 3 . . . 1 . . . Watcher 6 | . 2 . . . 4 . . . Swarmer 13 | . 3 . . . 10 . . . Grunt 46 | . 13 2 . 2 22 7 . . Brawler 2 | . . . . . 2 . . . Duelist 1 | . . . . . 1 . . . Protector 1 | . . . . . 1 . . . Sentry 14 | . . . . 1 8 3 2 . Hunter 1 | . . . . . 1 . . . Heavy 1 | . . . . . 1 . . . Explorer 1 | . . . . . . . . 1 Best Kill Streak 8 | 2 4 2 . 2 8 4 1 1 Combat Bots Only 6 | . 3 2 . 2 6 3 1 1 Max Kills in Single Turn 8 | 1 2 1 . 1 8 1 1 1 Gunslinging 1 | . . . . . 1 . . . Exploded 4 | . . . . . 4 . . . Melee . | . . . . . . . . . Uniques/NPCs Destroyed 1 | . . . . 1 . . . . YI-UF0 (-9/Mines) Combat | -11 -10 -10 -10 -9 -8 -8 -8 -8 -------- Run | Yrd Mat Min Exi Min Mat Sto Rec Scr Hostile Shots Fired 382 | . 69 8 . 16 191 42 4 52 Missed 100 | . 16 3 . 7 55 10 3 6 Damage Taken 4961 | . 610 77 . 234 2618 550 57 815 Core 800 | . 165 18 . 54 448 84 9 22 Absorbed by Shields 131 | . . . . . . 30 12 89 Regen/Repaired (Parts) 221 | . 34 . . . 49 138 . . Core Remaining (%) 52 | 100 . . . 5 . . . . Volleys Fired 258 | 11 66 9 . 10 117 32 3 10 Largest 3 | 2 2 2 . 2 3 3 3 2 Hottest 225 | 40 125 125 . 125 225 196 144 128 Shots Fired 630 | 22 126 18 . 20 328 92 9 15 Gun 517 | 22 109 9 . 10 321 46 . . Cannon 106 | . 12 9 . 10 5 46 9 15 Launcher 2 | . . . . . 2 . . . Special 5 | . 5 . . . . . . . Kinetic 187 | 22 58 . . . 42 46 9 10 Thermal 429 | . 68 18 . 13 279 46 . 5 Explosive 2 | . . . . . 2 . . . Electromagnetic 12 | . . . . 7 5 . . . Robot Hit Streak 15 | 8 13 5 . 9 15 10 4 4 Robot Miss Streak 11 | 2 6 5 . 3 11 1 1 1 Penetration Max . | . . . . . . . . . Secondary Targets 7 | . 3 . . . 3 1 . . Max Gunslinging Chain 1 | . 1 . . . 1 1 . . Shots Hit Robots 444 | 16 92 16 4 13 230 57 5 11 Core Hits 341 | 5 86 13 . 12 193 26 2 4 Critical Kills . | . . . . . . . . . Critical Parts Destroyed . | . . . . . . . . . Critical Strikes 5 | . . . . . 3 1 . 1 Burn 4 | . . . . . 3 1 . . Sever 1 | . . . . . . . . 1 Melee Attacks 7 | . . . 4 . . . . 3 Impact . | . . . . . . . . . Slashing 3 | . . . . . . . . 3 Piercing . | . . . . . . . . . Sneak Attacks 4 | . . . 4 . . . . . Combat Hostiles . | . . . . . . . . . Follow-up Attacks . | . . . . . . . . . Damage Inflicted 9619 | 121 1050 242 . 248 5936 1486 180 356 Guns 6655 | 121 942 118 . 101 4664 709 . . Cannons 1619 | . 108 124 . 88 51 746 180 322 Explosions 1311 | . . . . 59 1221 31 . . Melee 34 | . . . . . . . . 34 Ramming . | . . . . . . . . . Kinetic 1949 | 121 299 . . . 380 746 180 223 Thermal 6259 | . 751 242 . 184 4274 709 . 99 Explosive 1252 | . . . . . 1221 31 . . Electromagnetic 125 | . . . . 64 61 . . . Impact . | . . . . . . . . . Slashing 34 | . . . . . . . . 34 Piercing . | . . . . . . . . . Highest Corruption 1 | . . . . . . 1 1 . Average Corruption 1 | . . . . . . 1 1 . Corruption Purged . | . . . . . . . . . Corruption Blocked . | . . . . . . . . . Effects 9 | . . . . . . 1 8 . Message Errors 1 | . . . . . . . 1 . Matter Fused 3 | . . . . . . . 3 . Heat Flow Errors 2 | . . . . . . . 2 . Energy Discharges 3 | . . . . . . 1 2 . Overload Shots . | . . . . . . . . . Overflow Damage 124 | . . . . . 96 28 . . Projectiles 28 | . . . . . . 28 . . Explosions 96 | . . . . . 96 . . . Melee . | . . . . . . . . . Knockbacks 7 | . . . . . . 2 2 3 Impact . | . . . . . . . . . Kinetic 6 | . . . . . . 2 1 3 Secondary 1 | . . . . . . . 1 . Self-Inflicted Damage 83 | . . . . . 83 . . . Shots 2 | . . . . . 2 . . . Rammed . | . . . . . . . . . Targets Rammed . | . . . . . . . . . Kicked . | . . . . . . . . . Crushed . | . . . . . . . . . Highest Temperature 699 | . 198 129 . 27 388 278 263 699 Average Temperature 98 | . 50 48 . 16 99 86 104 468 Received Heat Transfer 1930 | . 312 42 . 18 954 283 23 298 Effects 17 | . . . . . 4 . . 13 Shutdowns 4 | . . . . . 1 . . 3 Energy Bleed 3 | . . . . . 1 . . 2 Interference 2 | . . . . . 1 . . 1 Matter Decay 1 | . . . . . . . . 1 Short Circuit 2 | . . . . . 1 . . 1 Damage (minor) 2 | . . . . . . . . 2 Damage (major) 3 | . . . . . . . . 3 Siege Activations . | . . . . . . . . . Robots Corrupted . | . . . . . . . . . Combat Hostiles . | . . . . . . . . . Parts Fried . | . . . . . . . . . Impact Corruptions . | . . . . . . . . . Robots Melted 1 | . . . . . 1 . . . Combat Hostiles 1 | . . . . . 1 . . . Parts Melted 21 | . 1 . . . 15 5 . . Heat Transferred 12180 | . 1032 404 . 335 8664 1571 . 174 Parts Sabotaged . | . . . . . . . . . Parts Stolen . | . . . . . . . . . Parts Stripped . | . . . . . . . . . Power Chain Reactions 2 | . . . . 2 . . . . Alert | -11 -10 -10 -10 -9 -8 -8 -8 -8 ------- Run | Yrd Mat Min Exi Min Mat Sto Rec Scr Peak Influence 673 | 10 268 65 . 80 673 506 200 . Initial 284 | . 6 46 . . 31 284 99 . Average 234 | 4 156 48 . 53 404 274 67 . Maximum Alert Level 2 | . 1 . . . 2 2 1 . Low Security (%) 51 | 100 69 100 . 100 12 27 96 . Level 1 28 | . 30 . . . 35 63 3 . Level 2 20 | . . . . . 51 9 . . Level 3 . | . . . . . . . . . Level 4 . | . . . . . . . . . Level 5 . | . . . . . . . . . High Security . | . . . . . . . . . Max Security . | . . . . . . . . . Squads Dispatched 12 | . 3 . . . 6 3 . . Investigation 5 | . 1 . . . 2 2 . . Extermination . | . . . . . . . . . Reinforcement 6 | . 2 . . . 3 1 . . Assault 1 | . . . . . 1 . . . Garrison . | . . . . . . . . . Intercept . | . . . . . . . . . Searches Triggered . | . . . . . . . . . Construction Impeded 1 | . . . . . 1 . . . Haulers Reinforced . | . . . . . . . . . Active Scanning Responses . | . . . . . . . . . Cargo Convoy Interrupts . | . . . . . . . . . Stealth | -11 -10 -10 -10 -9 -8 -8 -8 -8 --------- Run | Yrd Mat Min Exi Min Mat Sto Rec Scr Distress Signals 7 | . 3 . . . 2 2 . . Communications Jammed . | . . . . . . . . . Distress Signals . | . . . . . . . . . Times Spotted 132 | . 27 2 . 3 66 22 4 8 Peak Tracking Total 11 | . 4 2 . 1 6 4 2 11 Tactical Retreats 2 | . 1 . . . 1 . . . Traps | -11 -10 -10 -10 -9 -8 -8 -8 -8 ------- Run | Yrd Mat Min Exi Min Mat Sto Rec Scr Traps Triggered 2 | . 1 . . . 1 . . . Indirectly . | . . . . . . . . . Trap Hack Attempts . | . . . . . . . . . Triggered . | . . . . . . . . . Disarmed . | . . . . . . . . . Reprogrammed . | . . . . . . . . . Reused . | . . . . . . . . . Traps Extracted . | . . . . . . . . . Installed . | . . . . . . . . . Triggered . | . . . . . . . . . Machines | -11 -10 -10 -10 -9 -8 -8 -8 -8 ---------- Run | Yrd Mat Min Exi Min Mat Sto Rec Scr Machines Disabled 8 | . . . . . 4 2 . 2 Max in Single Turn 2 | . . . . . 2 1 . 1 Garrison Access 1 | . . . . . 1 . . . Machines Repaired . | . . . . . . . . . Machines Dismantled . | . . . . . . . . . Machines Sabotaged . | . . . . . . . . . Overloaded Fab Kills . | . . . . . . . . . Hacking | -11 -10 -10 -10 -9 -8 -8 -8 -8 --------- Run | Yrd Mat Min Exi Min Mat Sto Rec Scr Machines Accessed 46 | . 8 . 1 . 16 9 8 4 Terminals 28 | . 6 . . . 11 6 5 . Fabricators . | . . . . . . . . . Repair Stations 5 | . 1 . . . 2 2 . . Recycling Units 4 | . 1 . . . . . 3 . Scanalyzers 2 | . . . . . 2 . . . Garrison Access 2 | . . . . . 1 1 . . Total Hacks 153 | . 20 . 4 . 65 23 20 21 Successful 102 | . 13 . 4 . 42 12 10 21 Failed 49 | . 6 . . . 22 11 10 . Catastrophic 5 | . . . . . 3 2 . . Database Lockouts 2 | . 1 . . . 1 . . . Manual 63 | . 13 . . . 28 8 14 . Terminals 76 | . 15 . . . 33 16 12 . Fabricators . | . . . . . . . . . Repair Stations 12 | . 3 . . . 4 5 . . Recycling Units 10 | . 2 . . . . . 8 . Scanalyzers 24 | . . . . . 24 . . . Garrison Access 6 | . . . . . 4 2 . . Terminal Hacks 38 | . 3 . 4 . 5 5 . 21 Record 25 | . . . 4 . . . . 21 Part Schematic 1 | . . . . . 1 . . . Robot Analysis 2 | . 1 . . . . 1 . . Prototype ID Bank 3 | . 2 . . . . 1 . . Open Door 1 | . . . . . . 1 . . Unreport Threat 3 | . . . . . 2 1 . . Locate Traps 1 | . . . . . 1 . . . Hauler Manifests 1 | . . . . . 1 . . . Registered Components 1 | . . . . . . 1 . . Fabricator Hacks . | . . . . . . . . . Repair Station Hacks 8 | . 2 . . . 3 3 . . Scan Component 5 | . 1 . . . 2 2 . . Repair 3 | . 1 . . . 1 1 . . Recycling Unit Hacks 3 | . 1 . . . . . 2 . Report Inventory 3 | . 1 . . . . . 2 . Scanalyzer 21 | . . . . . 21 . . . Insert Component 9 | . . . . . 9 . . . Analyze 12 | . . . . . 12 . . . Garrison Access Hacks . | . . . . . . . . . Unauthorized Hacks 32 | . 7 . . . 13 4 8 . Terminals 28 | . 7 . . . 12 4 5 . Track 1 | . . . . . 1 . . . Botnet 4 | . 2 . . . 1 1 . . Skim 23 | . 5 . . . 10 3 5 . Fabricators . | . . . . . . . . . Repair Stations . | . . . . . . . . . Recycling Units 3 | . . . . . . . 3 . Tunnel 3 | . . . . . . . 3 . Scanalyzers . | . . . . . . . . . Garrison Access 1 | . . . . . 1 . . . Jam 1 | . . . . . 1 . . . Data Cores Recovered 1 | . 1 . . . . . . . Used . | . . . . . . . . . Hacking Detections 35 | . 7 . . . 14 8 6 . Full Trace Events 2 | . . . . . . 2 . . Feedback Events . | . . . . . . . . . Feedback Blocked . | . . . . . . . . . Robot Schematics Acquired . | . . . . . . . . . Robots Built . | . . . . . . . . . Authchips . | . . . . . . . . . Time . | . . . . . . . . . Total Robot Build Rating . | . . . . . . . . . Part Schematics Acquired 9 | . . . . . 9 . . . Parts Built . | . . . . . . . . . Authchips . | . . . . . . . . . Time . | . . . . . . . . . Total Part Build Rating . | . . . . . . . . . Parts Repaired 3 | . 1 . . . 1 1 . . Time 114 | . 26 . . . 50 38 . . Parts Recycled . | . . . . . . . . . Recycled Matter . | . . . . . . . . . Retrieved Matter . | . . . . . . . . . Retrieved Components . | . . . . . . . . . Parts Scanalyzed 9 | . . . . . 9 . . . Part Schematics Acquired 8 | . . . . . 8 . . . Parts Damaged . | . . . . . . . . . Bothacking | -11 -10 -10 -10 -9 -8 -8 -8 -8 ------------ Run | Yrd Mat Min Exi Min Mat Sto Rec Scr Used RIF Installer . | . . . . . . . . . Robots Hacked 4 | . . . 4 . . . . . Non-combat 3 | . . . 3 . . . . . Combat 1 | . . . 1 . . . . . Robot Hacks Applied 4 | . . . 4 . . . . . parse_system 4 | . . . 4 . . . . . Relay Couplers Released . | . . . . . . . . . Fabnet Peak Effective % . | . . . . . . . . . Robots Rewired . | . . . . . . . . . Allies Hacked . | . . . . . . . . . Hacks Repelled . | . . . . . . . . . Allies | -11 -10 -10 -10 -9 -8 -8 -8 -8 -------- Run | Yrd Mat Min Exi Min Mat Sto Rec Scr Total Allies . | . . . . . . . . . Largest Group . | . . . . . . . . . Highest-Rated Group . | . . . . . . . . . Highest-Rated Ally . | . . . . . . . . . Total Orders 7 | . . . . . . 7 . . EXPLORE 6 | . . . . . . 6 . . RETURN 1 | . . . . . . 1 . . Ally Attacks . | . . . . . . . . . Total Damage . | . . . . . . . . . Kills . | . . . . . . . . . Allies Corrupted . | . . . . . . . . . Allies Melted . | . . . . . . . . . Intel | -11 -10 -10 -10 -9 -8 -8 -8 -8 ------- Run | Yrd Mat Min Exi Min Mat Sto Rec Scr Robot Analysis Total 2 | . 1 . . . . 1 . . Derelict Logs Recovered 3 | . . 1 . 2 . . . . Drone Launches 6 | . . . . . . 6 . . Drone Recoveries 4 | . . . . . . 4 . . Exploration | -11 -10 -10 -10 -9 -8 -8 -8 -8 ------------- Run | Yrd Mat Min Exi Min Mat Sto Rec Scr Turns Passed 11541 | 125 1289 784 387 394 2759 1177 1011 3615 Spaces Moved 5183 | 67 709 483 269 209 1213 428 414 1391 Core 2 | 2 . . . . . . . . Treads 1457 | . 2 . . . 24 2 38 1391 Legs . | . . . . . . . . . Wheels 3724 | 65 707 483 269 209 1189 426 376 . Hover . | . . . . . . . . . Flight . | . . . . . . . . . Fastest Speed 50 | 50 95 155 140 140 150 165 165 250 Average Speed 182 | 98 123 155 141 153 168 178 186 250 Slowest Speed 250 | 100 240 155 155 155 240 250 250 250 Overloaded Moves . | . . . . . . . . . Propulsion Burnouts . | . . . . . . . . . Robots Hopped . | . . . . . . . . . Cave-ins Triggered . | . . . . . . . . . Exploration Rate (%) 71 | 5 97 90 65 41 96 74 89 88 Regions Visited 8 Branch Regions 6 Pre-discovered Areas 12 | . 3 . 1 . 3 . 5 . Known Exits Taken 3 | . . . . . 1 1 1 . Unknown Exits Taken 5 | 1 1 1 1 1 . . . . Scrap Searched 3 | . . 1 . . . . . 2 Spaces Dug 5 | . 5 . . . . . . . Terrain Destroyed 83 | . 5 . . 5 36 35 1 1 Melee . | . . . . . . . . . Projectile 26 | . 5 . . . . 19 1 1 AOE 57 | . . . . 5 36 16 . . Terrain Rammed . | . . . . . . . . . Walls Destroyed . | . . . . . . . . . Machines Disabled . | . . . . . . . . . Actions | -11 -10 -10 -10 -9 -8 -8 -8 -8 --------- Run | Yrd Mat Min Exi Min Mat Sto Rec Scr Total 6748 | 104 1002 500 273 264 1669 773 649 1514 Wait 1009 | 14 173 8 . 29 188 279 223 95 Move 5175 | 66 708 482 268 208 1212 427 413 1391 Hop . | . . . . . . . . . Pick Up 87 | 6 21 1 . 4 44 6 1 4 Fast Attach 32 | 7 5 . . . 9 7 2 2 Attach 19 | . . . . 1 16 1 1 . Detach . | . . . . . . . . . Swap 61 | . 12 . 1 6 31 7 2 2 Drop 99 | . 17 . . 6 52 13 4 7 Fire 258 | 11 66 9 . 10 117 32 3 10 Melee 7 | . . . 4 . . . . 3 Ram . | . . . . . . . . . Kick . | . . . . . . . . . Crush . | . . . . . . . . . Escape Stasis . | . . . . . . . . . Rewire . | . . . . . . . . . Trap . | . . . . . . . . . Miscellaneous 1 | . . . . . . 1 . . Route ------- -11/Scrapyard -10/Materials (discovered 6 exits: *Mat x3 / [*Min x2] / Sub) -10/Mines (discovered 3 exits: *Mat / *Exi / Sub) -10/Exiles -9/Mines -8/Materials (discovered 5 exits: *Fac x3 / *Sto x2) -8/Storage (discovered 2 exits: Fac / *Rec) -8/Recycling (discovered 2 exits: *Fac / *Scr) -8/Scraptown (discovered 2 exits: *Fac x2) History --------- Turn | Location | Event 63 | -11/Scrapyard | Discovered new exit (range 16) 126 | -11/Scrapyard | Entered Materials 308 | -10/Materials | Discovered new exit (range 6) 319 | -10/Materials | Build established: Mutant 390 | -10/Materials | Discovered new exit (range 6) 547 | -10/Materials | Discovered new exit (range 10) 713 | -10/Materials | Discovered new exit (range 16) 739 | -10/Materials | Core integrity fell below 50% 952 | -10/Materials | Discovered new exit (range 10) 1097 | -10/Materials | Identified exit to Subcaves 1133 | -10/Materials | Learned location of Mines (-10) 1142 | -10/Materials | Central database locked down 1175 | -10/Materials | Learned 2 Mines zone layouts 1176 | -10/Materials | Learned 2 Storage zone layouts 1180 | -10/Materials | Learned location of 1 exit from Storage 1236 | -10/Materials | Repaired Wheel 1415 | -10/Materials | Entered Mines 1416 | -10/Mines | Identified exit to Materials 1451 | -10/Mines | Met a Derelict bent on vengeance 1566 | -10/Mines | Deemed a non-threat by the Exiles lab entrance 1567 | -10/Mines | Discovered new exit (range 5) 1778 | -10/Mines | Learned 2 Materials zone layouts 2199 | -10/Mines | Entered Exiles 2238 | -10/Exiles | Met 8R-AWN 2264 | -10/Exiles | Met EX-HEX 2317 | -10/Exiles | Met EX-DEC 2358 | -10/Exiles | Learned location of Zion (-7) 2386 | -10/Exiles | Met EX-BIN 2573 | -10/Exiles | Discovered new exit (range 11) 2586 | -10/Exiles | Entered Mines 2598 | -9/Mines | Learned Materials stockpile data 2639 | -9/Mines | Core integrity fell below 20% 2639 | -9/Mines | Destroyed YI-UF0 2649 | -9/Mines | Discovered new exit (range 15) 2652 | -9/Mines | Found Prototype Launcher 2653 | -9/Mines | Identified YI-UF0's Doublenader 2721 | -9/Mines | Joined a pair of Derelicts in attacking an 0b10 outpost 2835 | -9/Mines | Learned Materials terminal intel 2980 | -9/Mines | Entered Materials 2980 | -8/Materials | Evolved 4 slots: Power x1, Propulsion x1, Utility x1, Weapon x1 2981 | -8/Materials | Identified exit to Factory 2983 | -8/Materials | Loaded intel: 12 terminal locations 3282 | -8/Materials | Build established: Scavenger-Tank 3635 | -8/Materials | Lost 10 parts (2p2n1u5w) 3816 | -8/Materials | Build established: Scavenger-Gunner 3869 | -8/Materials | Repaired Adv. Heat Sink 3961 | -8/Materials | Discovered exit to Factory (range 16) 4079 | -8/Materials | Central database locked down 4163 | -8/Materials | Core integrity fell below 50% 4457 | -8/Materials | Learned Factory fabricator intel 4485 | -8/Materials | Discovered exit to Factory (range 8) 4503 | -8/Materials | Learned Storage trap positions 4540 | -8/Materials | Learned 4 Recycling zone layouts 4563 | -8/Materials | Discovered new exit (range 15) 4567 | -8/Materials | Learned Factory interactive machine intel 4584 | -8/Materials | Learned Storage trap positions 4589 | -8/Materials | Learned Storage stockpile data 4590 | -8/Materials | Learned location of 2 exits from Lower Caves 4595 | -8/Materials | Identified exit to Storage 4638 | -8/Materials | Learned location of Lower Caves (-6) 4674 | -8/Materials | Learned Storage stockpile data 5377 | -8/Materials | Build established: Gunner 5380 | -8/Materials | First assault squad dispatched 5458 | -8/Materials | Learned Factory fabricator intel 5519 | -8/Materials | Learned location of 1 exit from Recycling 5553 | -8/Materials | Core integrity fell below 20% 5569 | -8/Materials | Learned Storage trap positions 5607 | -8/Materials | Learned location of Extension (-6) 5637 | -8/Materials | Learned 2 Lower Caves zone layouts 5739 | -8/Materials | Entered Storage 5741 | -8/Storage | Identified exit to Recycling 5743 | -8/Storage | Loaded intel: 7 trap records 6313 | -8/Storage | Met 01-MTF 6558 | -8/Storage | Repaired Arm. Treads 6916 | -8/Storage | Entered Recycling 6916 | -8/Recycling | Accompanied by 1 ally (01-MTF) 6917 | -8/Recycling | Identified exit to Factory 6918 | -8/Recycling | Identified exit to Scraptown 7668 | -8/Recycling | Learned location of Storage (-8) 7695 | -8/Recycling | Learned Factory trap positions 7711 | -8/Recycling | Learned 4 Lower Caves zone layouts 7718 | -8/Recycling | Learned Storage trap positions 7742 | -8/Recycling | Learned location of 1 exit from Storage 7856 | -8/Recycling | Scanned before Scraplab entrance 7902 | -8/Recycling | Entered Scraplab 7927 | -8/Recycling | Entered Scraptown 7927 | -8/Scraptown | System corruption cleaned by C-Scrubber 7946 | -8/Scraptown | Build established: Mutant 8150 | -8/Scraptown | Visited Cyclists 8230 | -8/Scraptown | Visited CPS Storage 8270 | -8/Scraptown | Visited Red Mages 9030 | -8/Scraptown | Visited Cave Peace 9053 | -8/Scraptown | Visited TADAMA 9070 | -8/Scraptown | Heard Great Nut preacher, LISTEN AND RECITE! 9210 | -8/Scraptown | Visited Awakened 9280 | -8/Scraptown | Visited Shadow of the Wyrm 9745 | -8/Scraptown | Visited UFD Registry 9760 | -8/Scraptown | Registered with UFD as "Microdome" 9845 | -8/Scraptown | Visited Chapter 10 10060 | -8/Scraptown | Entered Cyclist Reading Room 10210 | -8/Scraptown | Visited Observation Area 10265 | -8/Scraptown | Visited DA-N13 Charitable Foundation 10280 | -8/Scraptown | Found DCF Scrap (26 items) 10410 | -8/Scraptown | Visited Curators Association 10733 | -8/Scraptown | Visited LU-1G1's Boring Crew 10833 | -8/Scraptown | Visited Research Penetration Think Tank 10903 | -8/Scraptown | Visited Junk Repository 10968 | -8/Scraptown | Visited Scrap Suit Storage 11013 | -8/Scraptown | Visited Scrapoid Pod Storage 11058 | -8/Scraptown | Visited Abandonware Association 11090 | -8/Scraptown | Learned abandonware demo "ERRANTS.EXE" 11454 | -8/Scraptown | Attacked by Scraptown defenders 11542 | -8/Scraptown | Destroyed by LE-P0V(E) with Overtuned Barrage Gun Last Messages --------------- 11532_ Nuclear Core broken. 11532_ Overheating: Short circuit. 11532_ Machine disabled. 11534_ Overheating: Matter decay (-30). 11534_ 5D-0R0(j) knocked back. 11535_ Overheating: Hcp. Storage Unit damaged (-184). 11536_ Overheating: Energy bleed (-7). 11537_ Plasma Cannon destroyed. 11537_ Critical hit (Destroy). 11538_ Power failure, Deuterium Engine shutdown. 11538_ Overheating: System interference. 11538_ Adv. Assault Cannon temporarily disabled. 11538_ LE-P0V(E) Imp. Deuterium Engine severed. 11540_ Hrd. Medium Armor Plating destroyed. 11542_ Overheating: Adv. Assault Cannon damaged (-19). 11542_ Overheating: Hcp. Storage Unit damaged (-63). 11542_ Overheating: Arm. Treads damaged (-18). Map ----- +----------------------------------------------------+ | ????# #???#"""" ""#???? ????????? | | ????# #???#"""" ""#??? ???????? | | ##### ###?#"""" ""#???"" "" ???????? | | # ""#"#"""" ""#? "" ?????????? | | # """"#"""" ""# " ? ??????##### | | "" # ""#######" "" "???? | | "" # ###?????#" "" ""??? | | "" # #########" ""# " ?????##### | | # ""# "" "????????? | | # ""#? "" "" ???????? | | # ""#??? ????????? | | # ""#??? ????????? | | #### ""###### ########### | | """"""""""""""""""""" | | """"""""""""""""""""" | | t | | [ | | | | #""""#" % | | #????#" = | | #????#"""""% % """"""""" """""""" | | ########## ####????#####;# ########### ######## | | #???# #????????# Ej % #?#=*= * #??#" | | #???# #????????#" [ #?#== !! #??##" | | " #???# #????????#"%E%% "#?#|![]!*[/#???#= | | """ #???# #????????#"@*" "" "#?#*%[]!=%%#??##" | | """"" #???# #????????#" " " "#?#*=|##!! #??#" | | ""X"" #???# #????????#" " ? " "#?# =*## #??##" | | "" "" #???# #????????#" " ??" "#?##########???#] | | #???# #????????#" "???" "#??????????????#" | | #######???# #????????#" """"" "#?????????????#" | | ??????????# #????????#" "#?????????????### | | ??????????# #????????#"""""""""#???????????????? | | ???######## #????????###########???????????????? | | ???"""""""" #????????????????????############### | | ??""" """"" #????????????????????#"""##"""##"""# | | ?""" " "" #??????????""" ## ""## ""##" "##"""# | | #??????????""" | | "" "" "" " #??????????""" | | ???"""""""" #??????????""" | | ????""""""" #??????????""" ##"""##"""##""|##"|"# | | ?????###### #????????? ???#"""?#"""##"""##"""# | | ########### #??????????????????????????######### | | """"""""""# #??????????????????????????????????? | | "[ * ! "# #??????????????????????????????????? | | " ![] "# #??????????????????????????????????? | | " "# #??????????????????????????????????? | | "" """""""# #??????????????????????????????????? | | / #??????????????????????????????????? | | #??????????????????????????????????? | +----------------------------------------------------+ Best States ------------- Heat Dissipation 64 Energy Generation 23 Energy Capacity 440 Matter Stores 300 Matter Capacity 300 Sight Range 16 Terrain Scan Range 16 Terrain Scan Density 10 Armor Coverage 225 Evasion (%) 41 Targeting Accuracy 8 Recoil Reduction 3 Kinecelleration 30 Salvage Targeting 1 Offensive Hacking 10 Authchip Count 3 Item Schematics ----------------- Gatling Laser | -8/Materials | Scanalyzed Salvage Targeting Computer | -8/Materials | Scanalyzed Datajack | -8/Materials | Scanalyzed Adv. Weight Redist. System | -8/Materials | Scanalyzed Hcp. Storage Unit | -8/Materials | Hacked Hacking Suite | -8/Materials | Scanalyzed Hrd. Medium Armor Plating | -8/Materials | Scanalyzed Adv. Beam Rifle | -8/Materials | Scanalyzed Imp. Assault Rifle | -8/Materials | Scanalyzed Robot Schematics ------------------ None Fabricated ------------ Nothing Alien Tech Used ----------------- None Achievements -------------- None Challenges ------------ None Game ------ Seed WeaponsCommSabre Manual? 0 Play Time 01:19:47 Cumulative 497.0 hours Start 2024.09.02 @ 10:52:10 End 2024.09.02 @ 12:29:41 Sessions 1 Manual Loads 0 Difficulty Rogue Special Mode None Game No. 193 Rogue 190 Adventurer 3 Explorer 0 Win Type - Total 7 Types 4/1/0/1/0/1/0/0/0 Lore% 82 Gallery% 88 Achievement% 87 Wizard Run 0 Options --------- Layout 1 ASCII 0 Keyboard 0 Movement Numpad Keybinds 0 Fullscreen 2 Font 24/Smallcaps Map View 50x35 Zoom Use 0% Tactical HUD 1 Map Filters NONE Filters NONE Steam 1 RUN: 26358e80-7c56-42cb-b5aa-4953c714c390